fUSD/lending_fUSD_20240829
["ID","MTS","AMOUNT","RATE_DAILY","PERIOD"]
[336530569,1724901031965,-17399.4578333,0.00010997,2]
[336530570,1724901031975,-11710.0831922,0.00010997,2]
[336530571,1724901031984,-151.01981965,0.00010999,2]
[336530572,1724901031995,-608.75752632,0.00010999,2]
[336530573,1724901032004,-513.0,0.00010999,2]
[336530574,1724901032014,-150.99,0.00010999,2]
[336530575,1724901032024,-3184.35,0.00010999,2]
[336530576,1724901032034,-2995.002,0.00011,2]
[336530577,1724901032044,-71379.94340433,0.00011,2]
[336530578,1724901034852,500.0,0.00024,120]
[336530580,1724901037946,-3157.23284698,0.00011,2]
[336530581,1724901037958,-12680.68088358,0.00011,2]
[336530582,1724901037970,-4359.01403493,0.00011,2]
[336530583,1724901037982,-1161.08556967,0.00011,2]
[336530584,1724901037995,-303.16003,0.00011,2]
[336530585,1724901038143,-315.0,0.00011,2]
[336530719,1724901039890,-360.21872518,0.00011,2]
[336530721,1724901039904,-6429.8,0.00011,2]
[336530723,1724901039916,-310.14703584,0.00011,2]
[336530726,1724901039928,-246774.60552148,0.00011,2]
[336530745,1724901040111,-21747.4287702,0.00011,2]
[336531020,1724901044068,-33131.04051535,0.00011,2]
[336531021,1724901044129,265.0,0.00024,120]
[336531274,1724901053476,243.0,0.00024,120]
[336531275,1724901069905,800.0,0.000101,3]
[336531276,1724901071995,1600.0,0.000102,3]
[336531277,1724901074130,2400.0,0.000103,3]
[336531278,1724901076204,3200.0,0.000104,3]
[336531279,1724901078336,4100.0,0.000105,3]
[336531280,1724901080379,800.0,0.000106,3]
[336531281,1724901082466,800.0,0.000107,3]
[336531282,1724901084681,800.0,0.000108,3]
[336531283,1724901086656,800.0,0.000109,3]
[336531284,1724901102335,162.03,0.00010959,2]
[336531285,1724901112501,270.51,0.00010951,2]
[336531286,1724901184204,673.77,8.977e-05,2]
[336531287,1724901192700,1682.94,0.00010936,2]
[336531288,1724901216194,500.0,8.905e-05,2]
[336531289,1724901232593,230.98,0.00010892,2]
[336531290,1724901245846,7500.0,0.000109,2]
[336531291,1724901277912,1000.0,0.00010876,2]
[336531292,1724901331992,7500.0,0.000109,2]
[336531293,1724901347952,195.72,0.00010912,2]
[336531294,1724901363190,10348.07846492,0.000109,2]
[336531295,1724901439717,3452.8181,0.000109,2]
[336531296,1724901444616,324.51873,0.0001089,2]
[336531297,1724901451698,250.0,0.00010956,2]
[336531298,1724901528765,12390.1298,0.000109,2]
[336531299,1724901628849,169.43,0.00010959,2]
[336531300,1724901630794,250.0,0.00010959,2]
[336531301,1724901637147,3108.12,0.00010921,2]
[336531302,1724901679769,653.93,8.982e-05,2]
[336531303,1724901683469,270.51,0.00010914,2]
[336531304,1724901703583,231.0,0.00010914,2]
[336531305,1724901751313,150.70938,0.0001089,2]
[336531306,1724901817060,500.0,0.00010803,2]
[336531307,1724901850395,469.8119597,0.00024,120]
[336531308,1724901869845,200.0,0.0001093,2]
[336531309,1724901935355,1238.11555453,9.5e-05,2]
[336531310,1724902115829,328.2488375,0.0002,60]
[336531323,1724902231892,-300.0,0.00010961,2]
[336531324,1724902231904,-1922.41615197,0.00010962,7]
[336531328,1724902237925,-1982.0,0.00010962,7]
[336531329,1724902237938,-7156.03152853,0.00010962,7]
[336531330,1724902237948,-195.72,0.00010966,2]
[336531331,1724902237958,-6428.74061304,0.0001099,2]
[336531332,1724902237968,-4391.7783515,0.00010997,2]
[336531333,1724902237978,-12710.754516,0.00010997,2]
[336531334,1724902237988,-150.0,0.00010999,2]
[336531335,1724902237997,-151673.78021436,0.00011,2]
[336531336,1724902238062,-7436.49062996,0.00011,2]
[336531337,1724902238074,-2079.15905246,0.00011,2]
[336531372,1724902239998,-253.36,0.00011,2]
[336531375,1724902244363,-66556.94422221,0.00011,2]
[336531376,1724902245881,-1437.14066482,0.00011,2]
[336531377,1724902245994,-89730.98473984,0.00011,2]
[336531378,1724902278028,400.0,0.0001,3]
[336531379,1724902280124,800.0,0.000101,3]
[336531380,1724902282211,1200.0,0.000102,3]
[336531381,1724902284308,1600.0,0.000103,3]
[336531382,1724902286411,2000.0,0.000104,3]
[336531383,1724902288531,400.0,0.000105,3]
[336531384,1724902290628,400.0,0.000106,3]
[336531385,1724902292717,400.0,0.000107,3]
[336531386,1724902294817,400.0,0.000108,3]
[336531387,1724902296916,622.0,0.000109,3]
[336531388,1724902304017,1050.0,0.0001,2]
[336531389,1724902320848,306.88,0.00010959,2]
[336531390,1724902370602,648.34,9e-05,2]
[336531391,1724902383335,7032.33582052,0.000109,2]
[336531392,1724902415523,500.0,0.00010813,2]
[336531393,1724902427439,840.0,0.00010893,2]
[336531394,1724902610728,250.0,0.00010947,2]
[336531395,1724902665294,324.51873,0.0001095,2]
[336531396,1724902750564,152.94,0.00010959,2]
[336531397,1724902757665,179.929966,0.00010958,2]
[336531398,1724902762512,211.056926,0.00010958,2]
[336531399,1724902765771,157.654581,0.00010958,2]
[336531400,1724902766134,157.654581,0.00010958,2]
[336531401,1724902766587,157.654581,0.00010958,2]
[336531402,1724902778982,250.0,0.00010959,2]
[336531403,1724902795385,150.0,0.000151,120]
[336531404,1724902869785,247.07,0.00010953,2]
[336531405,1724902944217,1000.0,0.00010953,2]
[336531406,1724902970781,324.51873,0.0001094,2]
[336531407,1724902972681,150.70939,0.0001095,2]
[336531408,1724902982699,629.22,9.009e-05,2]
[336531409,1724902990061,328.0,0.00010897,2]
[336531410,1724903016228,500.0,8.937e-05,2]
[336531411,1724903027070,1748.29,0.00010932,2]
[336531412,1724903175871,250.0,0.00010925,2]
[336531414,1724903238738,179.929967,0.00010958,2]
[336531415,1724903242843,211.056927,0.00010958,2]
[336531416,1724903247139,157.654581,0.00010958,2]
[336531417,1724903247318,157.654581,0.00010958,2]
[336531418,1724903253346,184.79,0.0001089,2]
[336531419,1724903257392,250.0,0.00010959,2]
[336531420,1724903276324,324.51874,0.000109,2]
[336531421,1724903276353,324.51873,0.0001094,2]
[336531422,1724903278019,150.70938,0.0001094,2]
[336531423,1724903370276,2014.59637956,0.00024,120]
[336531424,1724903425397,187.45,0.00010899,2]
[336531432,1724903432030,-324.51873,0.0001098,2]
[336531433,1724903432040,-28.17463072,0.0001098,2]
[336531434,1724903432052,-171.82536928,0.0001098,2]
[336531435,1724903432062,-213.34724029,0.0001099,2]
[336531436,1724903432081,-1285.09495946,0.0001099,2]
[336531440,1724903437920,-2200.0,0.0001099,2]
[336531441,1724903437932,-16741.38379213,0.0001099,2]
[336531442,1724903438024,-1116.50326628,0.0001099,2]
[336531443,1724903438118,-484.43905378,0.0001099,2]
[336531444,1724903438130,-999.05767994,0.0001099,2]
[336531445,1724903439896,-1787.17400812,0.0001099,2]
[336531446,1724903439906,-3521.7985886,0.00010995,2]
[336531447,1724903439915,-260.02322557,0.00010995,2]
[336531448,1724903439927,-387.36561176,0.00010995,2]
[336531449,1724903440024,-500.0,0.00010995,2]
[336531450,1724903440119,-291.88343201,0.00010995,2]
[336531451,1724903440131,-3463.21212716,0.00010995,2]
[336531467,1724903444740,-1001.81860575,0.00010995,2]
[336531468,1724903444751,-401.47892665,0.00010995,2]
[336531469,1724903444769,-5839.8623236,0.00010995,2]
[336531470,1724903444779,-4913.8224142,0.00010995,2]
[336531471,1724903444788,-9051.9940148,0.00010995,2]
[336531472,1724903444797,-7970.4170444,0.00010995,2]
[336531473,1724903444806,-28589.7479999,0.00010995,2]
[336531474,1724903444817,-28620.8999999,0.00010995,2]
[336531475,1724903444827,-157.654581,0.00010997,2]
[336531476,1724903444836,-157.654581,0.00010997,2]
[336531477,1724903444845,-157.654581,0.00010998,2]
[336531478,1724903444855,-157.654581,0.00010998,2]
[336531479,1724903444864,-157.654581,0.00010998,2]
[336531480,1724903444873,-157.654581,0.00010998,2]
[336531481,1724903444882,-157.654581,0.00010998,2]
[336531482,1724903444891,-157.654581,0.00010998,2]
[336531483,1724903444902,-157.654581,0.00010998,2]
[336531484,1724903444911,-157.654581,0.00010998,2]
[336531485,1724903444920,-157.654581,0.00010998,2]
[336531486,1724903444930,-304.37876316,0.00010999,2]
[336531487,1724903444939,-244666.11783157,0.00011,2]
[336531490,1724903445807,-608.35712949,0.00011,2]
[336531491,1724903445935,-1576.26911367,0.00011,2]
[336531492,1724903445946,-480.34,0.00011,2]
[336531493,1724903445959,-1143.40519,0.00011,2]
[336531494,1724903445970,-1143.40519,0.00011,2]
[336531495,1724903446052,-285.56665977,0.00011,2]
[336531496,1724903482325,626.0,8.992e-05,2]
[336531497,1724903490165,737.6,0.0001089,2]
[336531498,1724903553574,1367.6398,0.00010895,2]
[336531499,1724903620907,500.0,0.00010808,2]
[336531500,1724903634432,1305.08,0.00010943,2]
[336531501,1724903692094,10000.0,0.00024,120]
[336531503,1724903737653,156.84,0.00010959,2]
[336531504,1724903807685,264.88684,0.0001089,2]
[336531505,1724903961499,594.7,9.748e-05,2]
[336531506,1724904056335,409.92,0.00010847,2]
[336531507,1724904084694,-150.0,0.00010994,2]
[336531508,1724904084717,-150.0,0.00010994,2]
[336531509,1724904091089,-150.0,0.00010994,2]
[336531510,1724904091116,-150.0,0.00010995,2]
[336531511,1724904093251,-5.5753177,0.00010995,2]
[336531512,1724904093277,-294.4246823,0.00010995,2]
[336531513,1724904096600,-300.0,0.00010995,2]
[336531514,1724904100155,-300.0,0.00010995,2]
[336531515,1724904102980,-300.0,0.00010995,2]
[336531516,1724904104655,-300.0,0.00010995,2]
[336531517,1724904107493,1050.0,0.0001,2]
[336531518,1724904193546,200.0,0.00010912,2]
[336531519,1724904223963,500.0,9.92e-05,2]
[336531520,1724904232606,220.73903,0.0001089,2]
[336531521,1724904263773,162.03,0.00010959,2]
[336531522,1724904412252,2569.80832816,0.000109,2]
[336531579,1724904446802,250.0,0.00010939,2]
[336531855,1724904497582,187.45,0.00010951,2]
[336531857,1724904541644,150.70938,0.0001089,2]
[336531866,1724904631891,-672.06,0.00010967,2]
[336531868,1724904631901,-210.76006204,0.00010975,2]
[336531871,1724904631912,-39.23993796,0.00010975,2]
[336531873,1724904631921,-169.84,0.00010983,2]
[336531875,1724904631931,-6209.26,0.00010985,2]
[336531877,1724904631940,-12314.3747747,0.00010994,2]
[336531878,1724904631949,-12383.2,0.00010994,2]
[336531880,1724904631958,-4043.3010969,0.00010994,2]
[336531883,1724904631969,-4082.5333333,0.00010994,2]
[336531885,1724904631978,-2761.3315548,0.00010994,2]
[336531886,1724904631987,-22464.6533333,0.00010994,2]
[336531887,1724904631996,-282.0169626,0.00010994,2]
[336531888,1724904632006,-304.37876316,0.00010999,2]
[336531889,1724904632015,-1006.67287572,0.00011,2]
[336531890,1724904632027,-748.54275745,0.00011,2]
[336531891,1724904632042,-968.61574791,0.00011,2]
[336531892,1724904632105,-160063.75223079,0.00011,2]
[336531893,1724904632160,-295.44814184,0.00011,2]
[336531894,1724904632171,-365.06759219,0.00011,2]
[336531895,1724904632184,-14452.0,0.00011,2]
[336531902,1724904638021,-25498.52435851,0.00011,2]
[336531903,1724904638231,-3733.51914188,0.00011,2]
[336531904,1724904638286,-2196.4498724,0.00011,2]
[336531907,1724904639926,-1819.20996264,0.00011,2]
[336531908,1724904639938,-1424.0,0.00011,2]
[336531909,1724904639950,-276.91061512,0.00011,2]
[336531910,1724904639982,-287.69874515,0.00011,2]
[336531911,1724904640035,-500.0,0.00011,2]
[336531912,1724904640046,-3730.46532221,0.00011,2]
[336531913,1724904640126,-607.64675005,0.00011,2]
[336531914,1724904640137,-1216.15843688,0.00011,2]
[336531915,1724904640307,-4564.99427688,0.00011,2]
[336531916,1724904640317,-419.77238971,0.00011,2]
[336531917,1724904640328,-1656.58520388,0.00011,2]
[336531918,1724904640339,-8310.90522579,0.00011,2]
[336531919,1724904640359,-548.10622179,0.00011,2]
[336531920,1724904640371,-495.98082769,0.00011,2]
[336531921,1724904640381,-1003.50055156,0.00011,2]
[336531922,1724904640391,-9509.48767589,0.00011,2]
[336531923,1724904640417,-7971.90000001,0.00011,2]
[336532165,1724904645921,-580.59172386,0.00011,2]
[336532166,1724904646036,-1367.99179144,0.00011,2]
[336532167,1724904646078,-573.27155235,0.00011,2]
[336532168,1724904646090,-1058.70623904,0.00011,2]
[336532169,1724904646241,-276.345,0.00011,2]
[336532180,1724904671207,266.6719,0.000109,2]
[336532181,1724904737753,605.5,9.122e-05,2]
[336532182,1724904739127,4771.5613,0.00022,60]
[336532183,1724904770634,369.5513,0.000109,2]
[336532184,1724904774616,471.6136,0.000109,2]
[336532185,1724904810888,150.51,0.00010959,2]
[336532186,1724904816210,500.0,0.00010813,2]
[336532187,1724904844085,184.8,0.00010932,2]
[336532188,1724904916378,2000.0,0.00022,60]
[336532189,1724904935664,2000.0,0.00022,60]
[336532190,1724904947074,2000.0,0.00022,60]
[336532191,1724905050252,462.35,0.0001091,2]
[336532192,1724905096163,4392.04805208,0.00024,120]
[336532194,1724905174669,300.0,0.000109,2]
[336532195,1724905210161,300.0,0.000109,2]
[336532196,1724905224820,575.22,8.949e-05,2]
[336532197,1724905242205,250.0,0.00010959,2]
[336532198,1724905246251,308.38118558,0.0001096,2]
[336532199,1724905316145,184.8,0.0001086,2]
[336532200,1724905344293,1204.867842,0.000109,2]
[336532201,1724905358704,306.29720351,0.000109,2]
[336532202,1724905421858,500.0,0.00010813,2]
[336532203,1724905428360,414.20220777,0.000109,2]
[336532204,1724905444715,168.7496316,0.000109,2]
[336532205,1724905453974,220.73904,0.0001095,2]
[336532206,1724905478260,152.94,0.00010959,2]
[336532207,1724905535901,300.0,9.5e-05,2]
[336532208,1724905619556,422.0148,0.000109,2]
[336532432,1724905669069,182.44337619,0.00010898,2]
[336532433,1724905718188,329.57850842,0.0002,60]
[336532435,1724905752024,574.61,9.19e-05,2]
[336532436,1724905759443,220.73904,0.0001094,2]
[336532437,1724905762985,150.70939,0.0001095,2]
[336532452,1724905831992,-300.0,0.00010961,2]
[336532455,1724905832001,-150.0,0.00010999,2]
[336532457,1724905832011,-94.57707993,0.00011,2]
[336532459,1724905832022,-418.54007673,0.00011,2]
[336532461,1724905832033,-841.20494822,0.00011,2]
[336532464,1724905832050,-811.05669613,0.00011,2]
[336532466,1724905832061,-12956.23460994,0.00011,2]
[336532468,1724905832672,-161049.46739298,0.00011,2]
[336532469,1724905832684,-332.80707912,0.00011,2]
[336532474,1724905838225,-691.275,0.00011,2]
[336532649,1724905911036,1050.0,0.0001,2]
[336532650,1724906009553,500.0,9.92e-05,2]
[336532651,1724906037157,289.12,0.00010898,2]
[336532652,1724906049360,3940.15,0.00010927,2]
[336532653,1724906116607,188.74,0.00010919,2]
[336532654,1724906126165,2466.65893064,0.000109,2]
[336532655,1724906129163,804.33,0.00022,60]
[336532656,1724906131668,187.45,0.0001093,2]
[336532657,1724906142969,250.0,0.0001093,2]
[336532658,1724906184993,1000.0,0.00010903,2]
[336532659,1724906214465,875.82,0.00010931,2]
[336532660,1724906235678,250.0,0.00010959,2]
[336532661,1724906236413,573.45,9.028e-05,2]
[336532662,1724906247869,864.15,0.00010958,2]
[336532663,1724906401589,12925.8067,0.000109,2]
[336532664,1724906421236,-899.15209728,0.00010988,2]
[336532665,1724906421262,-6670.1671765,0.00010997,2]
[336532666,1724906421288,-3174.6108129,0.00010997,2]
[336532667,1724906421313,-13117.71641332,0.00010997,2]
[336532668,1724906426322,-23728.92891169,0.00010997,2]
[336532669,1724906426345,-1271.07108831,0.00010997,2]
[336532670,1724906426905,-3352.04583167,0.00010997,2]
[336532671,1724906426931,-2406.1403764,0.00010997,2]
[336532672,1724906426955,-17818.8929999,0.00010997,2]
[336532673,1724906426979,-1422.92079203,0.00010998,2]
[336532674,1724906428064,-2774.89920797,0.00010998,2]
[336532675,1724906428086,-11003.41,0.00010999,2]
[336532676,1724906428109,-501.46122668,0.00010999,2]
[336532677,1724906428134,-1293.17972951,0.00010999,3]
[336532678,1724906428163,-9427.04983584,0.00011,2]
[336532679,1724906428672,-25000.0,0.00011,2]
[336532680,1724906429644,-25000.0,0.00011,2]
[336532681,1724906442989,998.3312,0.000109,2]
[336532682,1724906459689,435.6996,0.00010897,2]
[336532683,1724906530268,236.77474,0.0001089,2]
[336532684,1724906620189,1000.0,0.000109,2]
[336532685,1724906620275,500.0,0.00010803,2]
[336532686,1724906656790,2583.2377,0.00010897,2]
[336532687,1724906734793,200.0,0.0001095,2]
[336532688,1724906786054,544.77,9.093e-05,2]
[336532689,1724906815974,196.0182,0.000109,2]
[336532781,1724906869205,1310.76,0.00010928,2]
[336532782,1724906921519,197.31228,0.0001089,2]
[336532784,1724907032195,-168.7,0.00010979,2]
[336532785,1724907032205,-250.0,0.00010986,2]
[336532786,1724907032215,-197.25,0.0001099,2]
[336532787,1724907032224,-300.0,0.00010994,2]
[336532788,1724907032234,-277.2594491,0.00010995,2]
[336532789,1724907032457,-2885.45255949,0.00010995,2]
[336532790,1724907032476,-1791.36938582,0.00010995,2]
[336532791,1724907032659,-2.18178348,0.00010995,2]
[336532792,1724907032691,-6881.23837821,0.00010995,2]
[336532793,1724907032701,-1339.7448659,0.00010996,2]
[336532794,1724907032710,-1509.644453,0.00010996,2]
[336532795,1724907032719,-53.50072007,0.00010996,2]
[336532796,1724907032730,-2079.46612591,0.00010996,2]
[336532798,1724907038584,-16995.9006666,0.00010995,2]
[336532799,1724907038594,-8426.50515402,0.00010996,2]
[336532800,1724907038603,-150.0,0.00010996,2]
[336532801,1724907038612,-191.35414928,0.00010997,2]
[336532802,1724907038621,-1010.4523746,0.00010997,2]
[336532803,1724907038631,-788430.11872366,0.00011,2]
[336532804,1724907038640,-2767002.69925621,0.00011,2]
[336532805,1724907038716,-4462.55525909,0.00011,2]
[336532875,1724907044755,-866.32037423,0.00011,2]
[336532876,1724907156934,1688.4594,0.000109,2]
[336532877,1724907188263,-300.0,0.00010994,2]
[336532878,1724907188288,-4338.358,0.00010995,2]
[336532879,1724907188316,-2786.366543,0.00010995,2]
[336532880,1724907188342,-8140.1837112,0.00010995,2]
[336532881,1724907188368,-838.54942664,0.00010995,2]
[336532882,1724907188394,-1046.1988845,0.00010995,2]
[336532883,1724907204288,600.0,0.000101,3]
[336532884,1724907206378,1200.0,0.000102,3]
[336532885,1724907207203,-300.0,0.00010995,2]
[336532886,1724907207227,-192.31,0.00010998,2]
[336532887,1724907207251,-500.0,0.00010999,2]
[336532888,1724907207275,-500.0,0.00010999,2]
[336532889,1724907207298,-500.0,0.00010999,2]
[336532890,1724907207326,-934.02330682,0.00010999,2]
[336532891,1724907207350,-150.0,0.00010999,2]
[336532892,1724907207374,-242.18939926,0.00010999,2]
[336532893,1724907208473,603.37128652,0.000103,3]
[336532894,1724907208496,1196.62871348,0.000103,3]
[336532895,1724907210554,2400.0,0.000104,3]
[336532896,1724907212656,1521.8939926,0.000105,3]
[336532897,1724907212682,1478.1060074,0.000105,3]
[336532898,1724907212945,1196.29288932,0.00010999,3]
[336532899,1724907213021,1196.29288932,0.00010999,3]
[336532900,1724907214750,51.20220656,0.000106,3]
[336532901,1724907214775,548.79779344,0.000106,3]
[336532902,1724907214971,879.934,0.00010895,2]
[336532903,1724907216842,600.0,0.000107,3]
[336532904,1724907218103,500.0,0.00010907,2]
[336532905,1724907218929,600.0,0.000108,3]
[336532906,1724907221022,600.0,0.000109,3]
[336532907,1724907224253,193.16219916,0.00010995,2]
[336532908,1724907278861,164.4269,0.0001089,2]
[336532909,1724907292734,-300.0,0.00010994,2]
[336532910,1724907292763,-25351.78824724,0.00010995,2]
[336532911,1724907292789,-14698.6734977,0.00010995,2]
[336532912,1724907301576,-300.0,0.00010995,2]
[336532913,1724907328841,-300.0,0.00010998,2]
[336532914,1724907328867,-184.24873497,0.00010999,2]
[336532915,1724907328893,-627.40290072,0.00010999,2]
[336532916,1724907328918,-209.82254365,0.00010999,2]
[336532917,1724907328944,-500.0,0.00010999,2]
[336532918,1724907328970,-500.0,0.00010999,2]
[336532919,1724907328996,-604.20110747,0.00010999,2]
[336532920,1724907329100,-97074.32471319,0.00011,2]
[336532921,1724907366458,183.2699,0.000109,2]
[336532922,1724907372635,116.7301,0.000109,2]
[336532923,1724907372662,69.49641353,0.000109,2]
[336532924,1724907386198,968.8167,0.000109,2]
[336532925,1724907422458,598.6885,0.000109,2]
[336532926,1724907439472,7500.0,0.000109,2]
[336532927,1724907453467,181.81056203,0.00010846,2]
[336532928,1724907457266,220.68149823,0.000109,2]
[336532929,1724907476972,151.52,8.748e-05,2]
[336532930,1724907544875,565.35,9.674e-05,2]
[336532931,1724907574045,152.96,0.00010959,2]
[336532932,1724907622929,500.0,0.00010659,2]
[336532933,1724907627066,1187.28188,0.0001089,2]
[336532934,1724907649447,231.29,0.00010649,2]
[336532935,1724907665940,192.31,0.00010637,2]
[336532936,1724907672544,1359.12,0.00010637,2]
[336532937,1724907684932,81948.5467,0.000109,2]
[336532938,1724907690256,250.0,0.00010637,2]
[336532939,1724907709356,275.7071,0.000109,2]
[336532940,1724907714534,1050.0,0.0001,2]
[336532941,1724907722374,250.0,0.00010959,2]
[336532942,1724907724582,180.7180594,0.000109,2]
[336532943,1724907779049,500.0,0.0001,2]
[336532944,1724907801136,312.34,0.0001068,2]
[336532945,1724907816318,500.0,9.92e-05,2]
[336532946,1724907827049,160.0,0.00010443,2]
[336532947,1724907843406,3641.13410836,0.00010889,2]
[336532948,1724907858317,2372.73,0.0001045,2]
[336532949,1724907877860,318.6761,0.000109,2]
[336532950,1724907889866,23900.0,0.0001051,2]
[336532951,1724907936023,500.0,0.0001,2]
[336532952,1724907936895,500.0,0.0001,2]
[336532953,1724907937557,500.0,0.0001,2]
[336532954,1724907938325,500.0,0.0001,2]
[336532955,1724907939092,500.0,0.0001,2]
[336532956,1724907940007,500.0,0.0001,2]
[336532957,1724907940823,500.0,0.0001,2]
[336532958,1724907941630,500.0,0.0001,2]
[336532959,1724907942353,500.0,0.0001,2]
[336532960,1724907943689,500.0,0.0001,2]
[336532961,1724907944244,500.0,0.0001,2]
[336532962,1724907945018,500.0,0.0001,2]
[336532963,1724907945811,500.0,0.0001,2]
[336532964,1724907949333,156.42,7.88e-05,2]
[336532965,1724907974354,500.0,0.0001,2]
[336532966,1724907975203,500.0,0.0001,2]
[336532967,1724907975413,489.01766,0.0001089,2]
[336532968,1724907975968,500.0,0.0001,2]
[336532969,1724907976760,500.0,0.0001,2]
[336532970,1724907985743,150.52465436,9.888e-05,2]
[336532971,1724907990975,200.0,0.00010653,2]
[336532972,1724908012100,500.0,0.0001,2]
[336532973,1724908012867,500.0,0.0001,2]
[336532974,1724908013629,500.0,0.0001,2]
[336532975,1724908074120,552.22,8.668e-05,2]
[336532976,1724908074159,552.22,0.00010932,2]
[336532977,1724908080134,500.0,0.0001,2]
[336532978,1724908080950,500.0,0.0001,2]
[336532979,1724908081705,500.0,0.0001,2]
[336532980,1724908082403,500.0,0.0001,2]
[336532981,1724908083164,500.0,0.0001,2]
[336532982,1724908083947,500.0,0.0001,2]
[336532983,1724908085848,500.0,0.0001,2]
[336532984,1724908086605,500.0,0.0001,2]
[336532985,1724908087454,500.0,0.0001,2]
[336532986,1724908088223,500.0,0.0001,2]
[336532987,1724908088981,500.0,0.0001,2]
[336532988,1724908089743,500.0,0.0001,2]
[336532989,1724908090490,500.0,0.0001,2]
[336532990,1724908091242,500.0,0.0001,2]
[336532991,1724908106867,500.0,0.0001,2]
[336532992,1724908107538,500.0,0.0001,2]
[336532993,1724908108686,500.0,0.0001,2]
[336532994,1724908109465,500.0,0.0001,2]
[336532995,1724908110224,500.0,0.0001,2]
[336532996,1724908110981,500.0,0.0001,2]
[336532997,1724908112152,500.0,0.0001,2]
[336532998,1724908112934,500.0,0.0001,2]
[336532999,1724908113706,500.0,0.0001,2]
[336533000,1724908114510,500.0,0.0001,2]
[336533001,1724908115288,500.0,0.0001,2]
[336533002,1724908116029,500.0,0.0001,2]
[336533004,1724908157099,500.0,0.0001,2]
[336533005,1724908158541,500.0,0.0001,2]
[336533006,1724908163778,231.32,0.00010578,2]
[336533007,1724908182325,500.0,0.0001,2]
[336533008,1724908183087,500.0,0.0001,2]
[336533009,1724908183848,500.0,0.0001,2]
[336533010,1724908184645,500.0,0.0001,2]
[336533011,1724908198235,205.49,0.00010697,2]
[336533012,1724908208254,200.83359419,0.00010644,2]
[336533013,1724908223603,500.0,0.0001,2]
[336533014,1724908224369,583.81,0.0001,2]
[336533027,1724908231353,-158.44096007,0.00010973,2]
[336533028,1724908231363,-158.79274422,0.00010973,2]
[336533029,1724908231372,-204.47551448,0.00010973,2]
[336533030,1724908231381,-500.0,0.00010973,2]
[336533031,1724908231390,-150.0,0.00010988,2]
[336533032,1724908231400,-300.0,0.00010988,2]
[336533033,1724908231409,-168.924,0.00010989,2]
[336533034,1724908231419,-665.996,0.00010989,2]
[336533035,1724908231428,-810.0,0.00010989,2]
[336533036,1724908231438,-449.014,0.00010989,2]
[336533037,1724908231447,-185.87702586,0.00010989,2]
[336533038,1724908231544,-1107.47136403,0.00010989,2]
[336533039,1724908231614,-608.18661011,0.00010989,2]
[336533040,1724908231624,-32.83338989,0.00010989,2]